fUSD/lending_fUSD_20241031
["ID","MTS","AMOUNT","RATE_DAILY","PERIOD"]
[341075537,1730340640468,-25345.08829927,0.000539,2]
[341075538,1730340640480,-741.63926285,0.000539,2]
[341075539,1730340640533,-671.11125443,0.000539,2]
[341075540,1730340640545,-1122.09395094,0.000539,2]
[341075541,1730340640556,-395.92311807,0.000539,2]
[341075543,1730340643533,-563.8784653,0.000539,2]
[341075544,1730340643545,-509.97006902,0.000539,2]
[341075546,1730340646133,-3173.99615695,0.000539,2]
[341075547,1730340646364,-1186.59452409,0.000539,2]
[341075548,1730340646378,-277.77979186,0.000539,2]
[341075549,1730340646389,-13737.02976123,0.000539,2]
[341075550,1730340646400,-1484.18347028,0.000539,2]
[341075551,1730340646559,-7405.91550632,0.000539,2]
[341075552,1730340646570,-641.61544197,0.000539,2]
[341075553,1730340646581,-1241.69046288,0.000539,2]
[341075556,1730341088190,158.87,0.00015342,2]
[341075558,1730341508243,28471.27114035,0.00016,2]
[341075559,1730341508302,13000.0,0.00016,2]
[341075560,1730341508338,99292.62,0.00016,2]
[341075561,1730341508364,100000.0,0.00016,2]
[341075562,1730341508403,100000.0,0.00016,2]
[341075563,1730341508429,100000.0,0.00016,2]
[341075565,1730341545536,-20000.0,0.00016,2]
[341075567,1730341598816,157.38,0.00015342,2]
[341075570,1730341629969,565.58502372,0.000153,2]
[341075576,1730341669607,4434.63776557,0.00021,4]
[341075584,1730341758628,-150.0,0.00015899,2]
[341075585,1730341758648,-650.0,0.000159,2]
[341075586,1730341760058,-800.0,0.000159,2]
[341075589,1730341760948,-800.0,0.000159,2]
[341075590,1730341761982,-800.0,0.000159,2]
[341075591,1730341762904,-800.0,0.000159,2]
[341075592,1730341763929,-800.0,0.000159,2]
[341075593,1730341765026,-800.0,0.000159,2]
[341075594,1730341765996,-800.0,0.000159,2]
[341075601,1730341770039,-800.0,0.000159,2]
[341075602,1730341771088,-800.0,0.000159,2]
[341075603,1730341772123,-800.0,0.000159,2]
[341075604,1730341773165,-800.0,0.000159,2]
[341075605,1730341784398,1321.11443004,0.00015999,5]
[341075606,1730341786308,400.0,0.000157,5]
[341075607,1730341788415,900.0,0.000158,5]
[341075608,1730341790522,1400.0,0.000159,5]
[341075612,1730341799042,-500.0,0.00015899,2]
[341075613,1730341799064,-300.0,0.00015899,2]
[341075614,1730341800107,-24.80103462,0.00015899,2]
[341075615,1730341800129,-500.0,0.00015899,2]
[341075616,1730341800151,-275.19896538,0.00015899,2]
[341075617,1730341801211,-224.80103462,0.00015899,2]
[341075618,1730341801231,-575.19896538,0.000159,2]
[341075619,1730341802170,-800.0,0.000159,2]
[341075620,1730341803149,-800.0,0.000159,2]
[341075621,1730341804209,-800.0,0.000159,2]
[341075622,1730341805314,-220.75,0.0001589,2]
[341075623,1730341805334,-579.25,0.000159,2]
[341075624,1730341806386,-800.0,0.000159,2]
[341075625,1730341807535,-800.0,0.000159,2]
[341075626,1730341808681,-800.0,0.000159,2]
[341075627,1730341809868,-800.0,0.000159,2]
[341075638,1730341832398,-2909.42136035,0.000159,2]
[341075639,1730341832410,-31602.37759263,0.000159,2]
[341075640,1730341832422,-58298.0,0.000159,2]
[341075642,1730341832433,-3324.45701858,0.000159,2]
[341075644,1730341832444,-25145.03908768,0.000159,2]
[341075650,1730341832545,-484.32,0.000159,2]
[341075651,1730341832556,-503.022718,0.000159,2]
[341075652,1730341832567,-7211.0,0.000159,2]
[341075653,1730341832643,-127221.26797911,0.000159,2]
[341075654,1730341832652,-2359.67341707,0.000159,2]
[341075655,1730341832662,-500.0,0.00015973,2]
[341075656,1730341832671,-337.35281905,0.00015973,2]
[341075657,1730341832680,-249.20690083,0.00016,2]
[341075658,1730341832689,-1058047.08384227,0.00016,2]
[341075659,1730341832700,-352.5,0.00016,2]
[341075660,1730341832711,-32360.43600139,0.00016,2]
[341075672,1730341838385,-44294.59778061,0.00016,2]
[341075673,1730341838635,-270.81554095,0.00016,2]
[341075674,1730341838736,-319.24299861,0.00016,2]
[341075675,1730341840529,-1124.00287894,0.00016,2]
[341075676,1730341840656,-1488.04836698,0.00016,2]
[341075679,1730341843720,-12046.20346516,0.00016,2]
[341075680,1730341843815,-8416.999,0.00016,2]
[341075681,1730341843932,-431.0,0.00016,2]
[341075684,1730341846570,-1202.157947,0.00016,2]
[341075685,1730341846894,-7405.91550632,0.00016,2]
[341075686,1730341846906,-11070.39664901,0.00016,2]
[341075689,1730342144038,158.11,0.00015342,2]
[341075704,1730342941648,158.54,0.00015342,2]
[341075719,1730343031614,-1332.63115809,0.00015694,2]
[341075720,1730343031625,-407.29900633,0.00015694,2]
[341075721,1730343031637,-664.81845597,0.00015694,2]
[341075722,1730343031646,-47.61857403,0.00015699,2]
[341075749,1730343037643,-122.45953464,0.00015699,2]
[341075750,1730343037655,-2404.74862037,0.00015784,2]
[341075751,1730343037665,-89.60831637,0.00015843,2]
[341075752,1730343037677,-328.18018996,0.00015843,2]
[341075753,1730343037687,-2263.67899623,0.00015873,2]
[341075754,1730343037698,-141.06962414,0.00015873,2]
[341075755,1730343037707,-500.0,0.00015973,2]
[341075756,1730343037717,-150.0,0.00015999,2]
[341075757,1730343037726,-202.75567051,0.00015999,2]
[341075758,1730343037735,-12585.82562236,0.00016,2]
[341075759,1730343037809,-16168.0853545,0.00016,2]
[341075760,1730343037820,-32197.65618481,0.00016,2]
[341075761,1730343037831,-139148.84909034,0.00016,2]
[341075762,1730343037845,-250112.41577568,0.00016,2]
[341075763,1730343039626,-1841.13879457,0.00016,2]
[341075765,1730343039809,-1097.65702065,0.00016,2]
[341075766,1730343039820,-1130.21191036,0.00016,2]
[341075796,1730343042726,-6288.30526905,0.00016,2]
[341075797,1730343042739,-3592.79227772,0.00016,2]
[341075799,1730343042750,-2663.47999986,0.00018978,2]
[341075800,1730343042760,-232.62,0.00019178,2]
[341075801,1730343042769,-2198.69,0.00019178,2]
[341075802,1730343042778,-178.21,0.00019178,2]
[341075803,1730343042787,-150.99,0.00019452,2]
[341075804,1730343042796,-2000.0,0.00021,2]
[341075805,1730343042805,-200.0,0.00021,2]
[341075806,1730343042814,-2000.0,0.0002121,2]
[341075807,1730343042823,-200.0,0.0002121,2]
[341075808,1730343042831,-500.0,0.00021452,2]
[341075809,1730343042841,-2663.4799998,0.00024392,2]
[341075810,1730343042850,-2663.4799998,0.00029805,15]
[341075811,1730343042860,-189.09,0.00034455,2]
[341075812,1730343042869,-668.09669282,0.00035219,15]
[341075813,1730343042886,-1995.38330698,0.00035219,15]
[341075814,1730343042896,-430.833,0.00036176,44]
[341075815,1730343042906,-154.20621983,0.0003999,120]
[341075816,1730343042919,-2663.4799998,0.00040632,15]
[341075817,1730343042930,-159.09057656,0.0004077,30]
[341075818,1730343042939,-173.613,0.00040908,2]
[341075819,1730343042950,-30801.0,0.00040917,2]
[341075820,1730343042960,-857.95,0.00042122,2]
[341075822,1730343042970,-500.0,0.00042327,2]
[341075824,1730343042981,-24006.30730054,0.0004238,2]
[341075825,1730343042992,-160.33,0.0004242,10]
[341075826,1730343043004,-4879.45542978,0.0004243,2]
[341075830,1730343045659,-12732.99457022,0.0004243,2]
[341075831,1730343045669,-250.0,0.00042491,2]
[341075832,1730343045679,-174.2,0.00042587,2]
[341075833,1730343045688,-643.43,0.00042743,2]
[341075834,1730343045697,-317.49449349,0.000428,60]
[341075835,1730343045706,-194.8563136,0.000429,30]
[341075836,1730343045717,-213.21175458,0.00043221,15]
[341075837,1730343045727,-271.35,0.00043252,2]
[341075838,1730343045737,-168.15,0.00043498,2]
[341075839,1730343045747,-163.43,0.00043528,2]
[341075840,1730343045757,-227.01,0.0004358,2]
[341075841,1730343045767,-154.43,0.00043661,2]
[341075842,1730343045777,-256.83959655,0.00043738,2]
[341075843,1730343045787,-256.83959655,0.00043748,2]
[341075844,1730343045797,-200.0,0.00043787,2]
[341075845,1730343045807,-256.83959655,0.00043808,2]
[341075846,1730343045818,-256.83959655,0.00043875,2]
[341075847,1730343045827,-256.83959655,0.00043907,2]
[341075848,1730343045837,-256.83959655,0.00043991,2]
[341075849,1730343045847,-150.0,0.000441,2]
[341075850,1730343045856,-536.44019413,0.000441,120]
[341075851,1730343045866,-419.2095,0.00044124,14]
[341075852,1730343045876,-211.63125,0.00044124,14]
[341075853,1730343045885,-193.44825,0.00044124,14]
[341075854,1730343045894,-150.0,0.00044139,2]
[341075855,1730343045904,-700.0,0.00044157,16]
[341075856,1730343045913,-700.0,0.00044157,16]
[341075857,1730343045923,-700.0,0.00044157,16]
[341075858,1730343045932,-700.0,0.00044157,16]
[341075859,1730343045941,-700.0,0.00044157,16]
[341075860,1730343045949,-219.48609763,0.00044221,90]
[341075861,1730343045958,-178.2062663,0.00044221,120]
[341075862,1730343045968,-155.41163918,0.00044221,120]
[341075863,1730343045977,-168.04464785,0.00044221,30]
[341075864,1730343045986,-594.92254957,0.00044221,120]
[341075865,1730343045995,-498.479257,0.00044221,5]
[341075866,1730343046003,-150.0,0.00044323,7]
[341075867,1730343046012,-565.4,0.00044774,2]
[341075868,1730343046021,-170.33,0.0004488,120]
[341075869,1730343046030,-152.85199328,0.00045,120]
[341075870,1730343046039,-10000.0,0.00045,120]
[341075871,1730343046048,-163.25,0.00045002,2]
[341075872,1730343046057,-643.43,0.00045007,2]
[341075873,1730343046066,-250.0,0.00045111,120]
[341075874,1730343046075,-271.35,0.00045414,2]
[341075875,1730343046085,-250.0,0.00045762,120]
[341075876,1730343046097,-143.75176668,0.00045771,2]
[341075877,1730343046109,-525.28998688,0.00045771,2]
[341075878,1730343046122,-29.14824644,0.00045771,2]
[341075879,1730343046132,-10000.0,0.00046,120]
[341075880,1730343046142,-2663.4799998,0.00046046,15]
[341075881,1730343046152,-299.95,0.000463,7]
[341075882,1730343046161,-10000.0,0.00047,120]
[341075883,1730343046171,-643.43,0.00047271,2]
[341075884,1730343046181,-154.43,0.00047354,2]
[341075885,1730343046190,-271.35,0.00047577,2]
[341075886,1730343046200,-10000.0,0.00048,120]
[341075887,1730343046210,-10000.0,0.00049,120]
[341075888,1730343046221,-419.2095,0.00049252,14]
[341075889,1730343046230,-2414.0,0.000493,2]
[341075890,1730343046240,-700.0,0.00049315,26]
[341075891,1730343046250,-164.922124,0.00049396,30]
[341075892,1730343046260,-500.5152505,0.00049467,7]
[341075893,1730343046271,-158.959913,0.000495,120]
[341075894,1730343046281,-643.43,0.00049535,2]
[341075895,1730343046291,-271.35,0.00049739,2]
[341075896,1730343046300,-257.60056105,0.0005,120]
[341075897,1730343046310,-173.0,0.0005,19]
[341075898,1730343046320,-207.25,0.00050026,2]
[341075899,1730343046330,-168.12,0.00050588,2]
[341075900,1730343046340,-154.43,0.00051048,2]
[341075901,1730343046350,-2663.4799998,0.00051459,15]
[341075902,1730343046360,-189.09,0.00051683,2]
[341075903,1730343046370,-643.43,0.00051799,2]
[341075904,1730343046380,-271.35,0.00051902,2]
[341075905,1730343046390,-540.0,0.00052,120]
[341075906,1730343046399,-1764.40755874,0.00052,45]
[341075907,1730343046410,-528.04482108,0.00052054,120]
[341075908,1730343046419,-518.86461523,0.00052054,120]
[341075909,1730343046428,-518.12332023,0.00052054,120]
[341075910,1730343046438,-511.92318131,0.00052054,120]
[341075911,1730343046447,-500.0,0.00052054,120]
[341075912,1730343046456,-500.0,0.00052054,120]
[341075913,1730343046465,-500.0,0.00052054,120]
[341075914,1730343046475,-500.0,0.00052054,120]
[341075915,1730343046484,-500.0,0.00052054,120]
[341075916,1730343046493,-500.0,0.00052054,120]
[341075917,1730343046502,-500.0,0.00052054,120]
[341075918,1730343046512,-500.0,0.00052054,120]
[341075919,1730343046520,-1000.0,0.00052054,120]
[341075920,1730343046529,-2414.2832613,0.000521,2]
[341075921,1730343046538,-6397.48779313,0.000523,30]
[341075922,1730343046550,-350.4426794,0.000523,30]
[341075923,1730343046561,-8252.06952846,0.000523,30]
[341075924,1730343046571,-972.21964037,0.00052328,120]
[341075925,1730343046580,-885.70093315,0.00052924,120]
[341075926,1730343046594,-1460.0,0.00053,120]
[341075927,1730343046603,-2962.6866028,0.00053,120]
[341075928,1730343046613,-150.0,0.00053669,7]
[341075929,1730343046623,-150.0,0.00053679,7]
[341075930,1730343046633,-2000.0,0.0005373,2]
[341075931,1730343046642,-18838.29344979,0.00053799,120]
[341075932,1730343046653,-860.08398559,0.00053799,120]
[341075933,1730343046663,-5828.334385,0.000538,2]
[341075934,1730343046672,-174.72845702,0.000538,19]
[341075935,1730343046683,-125.27154298,0.000538,19]
[341075936,1730343046692,-150.0,0.00053867,7]
[341075937,1730343046701,-150.0,0.00053867,7]
[341075938,1730343046710,-864.12879738,0.000539,2]
[341075939,1730343046916,-6.50707951,0.000539,2]
[341075940,1730343046925,-168.16942552,0.000539,54]
[341075941,1730343046934,-4292.60715405,0.000539,120]
[341075943,1730343428079,156.37,0.00015342,2]
[341075950,1730343987532,155.94,0.00015342,2]
[341075979,1730344231761,-300.0,0.00019725,2]
[341075982,1730344231770,-420.0,0.00021484,2]
[341075985,1730344231779,-187.0,0.00023401,2]
[341075988,1730344231788,-285.0,0.000252,2]
[341075990,1730344231798,-225.4845,0.00044124,14]
[341075991,1730344231807,-48.65676311,0.00044149,7]
[341075992,1730344231818,-139.92413689,0.00044149,7]
[341075993,1730344231827,-320.5070983,0.00044149,2]
[341075994,1730344231985,-459.25521106,0.00044149,2]
[341075995,1730344231996,-697.89036063,0.00044149,2]
[341075996,1730344232008,-4028.71123858,0.00044149,2]
[341075997,1730344232020,-1530.12866605,0.00044149,2]
[341075998,1730344232031,-7309.07812538,0.00044149,2]
[341075999,1730344232040,-10000.0,0.00044249,2]
[341076000,1730344232051,-5000.0,0.00044249,30]
[341076001,1730344232061,-5000.0,0.00044249,10]
[341076002,1730344232071,-700.0,0.00045294,17]
[341076003,1730344232080,-700.0,0.00045294,17]
[341076004,1730344232089,-700.0,0.00045294,17]
[341076005,1730344232098,-700.0,0.00045294,17]
[341076006,1730344232108,-700.0,0.00045294,17]
[341076007,1730344232117,-586.12,0.00048296,2]
[341076008,1730344232126,-152.0,0.00048827,3]
[341076009,1730344232135,-469.0,0.00049015,7]
[341076010,1730344232145,-469.0,0.00049015,7]
[341076011,1730344232157,-469.0,0.00049015,7]
[341076012,1730344232167,-469.0,0.00049015,7]
[341076013,1730344232178,-225.4845,0.00049252,14]
[341076014,1730344232188,-700.0,0.00049315,27]
[341076015,1730344232197,-472.50337358,0.00049396,30]
[341076016,1730344232206,-1081.0,0.000498,7]
[341076018,1730344232215,-234.44,0.00049956,7]
[341076020,1730344232226,-234.44,0.00049956,7]
[341076021,1730344232236,-234.44,0.00049956,7]
[341076022,1730344232245,-234.44,0.00049956,7]
[341076023,1730344232256,-200.0,0.00050296,2]
[341076024,1730344232268,-586.12,0.0005056,2]
[341076026,1730344232278,-493.82,0.000509,7]
[341076028,1730344232287,-493.82,0.000509,7]
[341076029,1730344232296,-493.82,0.000509,7]
[341076030,1730344232306,-493.82,0.000509,7]
[341076031,1730344232316,-1000.0,0.00051112,120]
[341076032,1730344232325,-170.33,0.00051161,120]
[341076033,1730344232335,-578.1,0.00051439,2]
[341076035,1730344232344,-153.55,0.00051531,2]
[341076036,1730344232353,-1021.29,0.0005154,7]
[341076037,1730344232362,-1021.29,0.0005154,7]
[341076038,1730344232372,-1021.29,0.0005154,7]
[341076039,1730344232381,-1021.29,0.0005154,7]
[341076040,1730344232391,-156.0,0.00051839,9]
[341076041,1730344232401,-250.0,0.0005184,120]
[341076042,1730344232410,-150.0,0.0005196,2]
[341076043,1730344232419,-225.5,0.00052,120]
[341076044,1730344232429,-362.58,0.00052198,7]
[341076045,1730344232437,-362.58,0.00052198,7]
[341076046,1730344232447,-362.58,0.00052198,7]
[341076047,1730344232456,-362.58,0.00052198,7]
[341076048,1730344232466,-961.89,0.00052215,2]
[341076049,1730344232475,-250.0,0.0005231,120]
[341076050,1730344232484,-163.25,0.0005233,2]
[341076051,1730344232495,-150.0,0.00052497,7]
[341076052,1730344232508,-152.0,0.00052817,4]
[341076053,1730344232518,-586.12,0.00052824,2]
[341076054,1730344232532,-2483.79,0.0005289,7]
[341076055,1730344232542,-2483.79,0.0005289,7]
[341076056,1730344232552,-2483.79,0.0005289,7]
[341076057,1730344232561,-2483.79,0.0005289,7]
[341076058,1730344232570,-286824.28,0.000535,7]
[341076059,1730344232580,-67384.51,0.000535,7]
[341076060,1730344232589,-20553.25437524,0.000535,7]
[341076061,1730344232601,-1677.4496528,0.000535,7]
[341076062,1730344232612,-3168.51029453,0.000535,7]
[341076064,1730344237996,-4205.09567743,0.000535,7]
[341076065,1730344238006,-3051.68,0.000535,7]
[341076066,1730344238017,-937.92658408,0.00053705,15]
[341076067,1730344238026,-2000.0,0.0005373,2]
[341076068,1730344238035,-2000.0,0.0005373,2]
[341076069,1730344238046,-150.0,0.00053743,7]
[341076070,1730344238055,-150.0,0.00053744,7]
[341076071,1730344238064,-150.0,0.00053749,7]
[341076072,1730344238073,-609.483,0.00053752,100]
[341076073,1730344238083,-150.0,0.00053782,7]
[341076074,1730344238092,-176.6,0.0005379,2]
[341076075,1730344238101,-801.69,0.0005379,10]
[341076076,1730344238110,-304.08090624,0.00053799,2]
[341076077,1730344238119,-500.0,0.00053799,120]
[341076078,1730344238128,-500.0,0.00053799,120]
[341076079,1730344238137,-500.0,0.00053799,120]
[341076080,1730344238146,-500.0,0.00053799,120]
[341076081,1730344238155,-500.0,0.00053799,120]
[341076082,1730344238164,-500.0,0.00053799,120]
[341076083,1730344238173,-500.0,0.00053799,120]
[341076084,1730344238182,-3215.1599,0.000538,2]
[341076085,1730344238191,-1839.4427,0.000538,2]
[341076086,1730344238200,-18786.8381,0.000538,2]
[341076087,1730344238209,-2500.0,0.000538,2]
[341076088,1730344238218,-300.0,0.000538,19]
[341076089,1730344238226,-192710.13623684,0.000538,120]
[341076090,1730344238235,-150.0,0.00053832,7]
[341076091,1730344238244,-150.0,0.00053834,7]
[341076092,1730344238253,-150.0,0.0005384,7]
[341076093,1730344238262,-150.0,0.00053841,7]
[341076094,1730344238271,-1063.77499849,0.00053845,120]
[341076095,1730344238280,-150.0,0.00053845,7]
[341076096,1730344238289,-150.0,0.00053846,7]
[341076097,1730344238298,-150.0,0.00053869,7]
[341076098,1730344238307,-150.0,0.0005387,7]
[341076099,1730344238317,-176.6,0.00053889,2]
[341076100,1730344238326,-176.6,0.00053889,2]
[341076101,1730344238335,-176.6,0.00053889,2]
[341076102,1730344238344,-176.6,0.0005389,2]
[341076103,1730344238353,-150.0,0.00053893,7]
[341076104,1730344238362,-18827.9300503,0.00053893,2]
[341076105,1730344238371,-7008.3639971,0.00053893,2]
[341076106,1730344238379,-532.23102363,0.00053898,120]
[341076107,1730344238388,-528.50707051,0.00053898,120]
[341076108,1730344238397,-500.0,0.00053898,120]
[341076109,1730344238406,-500.0,0.00053898,120]
[341076110,1730344238415,-500.0,0.00053898,120]
[341076111,1730344238424,-535.50709327,0.00053898,120]
[341076112,1730344238433,-500.0,0.00053898,120]
[341076113,1730344238442,-500.0,0.00053898,120]
[341076114,1730344238451,-500.0,0.00053898,120]
[341076115,1730344238460,-500.0,0.00053898,120]
[341076116,1730344238469,-55555.0,0.00053899,120]
[341076117,1730344238478,-151.05544506,0.00053899,120]
[341076118,1730344238488,-2982.02990425,0.00053899,120]
[341076119,1730344238498,-150.0,0.00053899,7]
[341076120,1730344238508,-635.1109738,0.00053899,120]
[341076121,1730344238517,-632.6387092,0.00053899,120]
[341076122,1730344238526,-500.0,0.00053899,120]
[341076123,1730344238535,-519.13920722,0.00053899,120]
[341076124,1730344238544,-517.05177928,0.00053899,120]
[341076125,1730344238553,-506.94355283,0.00053899,120]
[341076126,1730344238562,-513.36812196,0.00053899,120]
[341076127,1730344238572,-510.35953989,0.00053899,120]
[341076128,1730344238581,-542.31458248,0.00053899,120]
[341076129,1730344238590,-446.422319,0.00053899,120]
[341076130,1730344238599,-523.20402194,0.00053899,120]
[341076131,1730344238608,-533.94308546,0.00053899,120]
[341076132,1730344238617,-521.53566295,0.00053899,120]
[341076133,1730344238626,-522.92186639,0.00053899,120]
[341076134,1730344238635,-471.83538031,0.00053899,120]
[341076135,1730344238644,-526.81477362,0.00053899,120]
[341076136,1730344238653,-523.10955349,0.00053899,120]
[341076137,1730344238662,-504.97656861,0.00053899,120]
[341076138,1730344238672,-514.5866597,0.00053899,120]
[341076140,1730344238681,-541.10516542,0.00053899,120]
[341076141,1730344238690,-525.10263438,0.00053899,120]
[341076142,1730344238700,-504.23373197,0.00053899,120]
[341076143,1730344238709,-592.27418029,0.00053899,120]
[341076144,1730344238718,-211.45285672,0.00053899,120]
[341076145,1730344238727,-545.39999375,0.00053899,120]
[341076146,1730344238736,-529.55122578,0.00053899,120]
[341076147,1730344238745,-505.96506157,0.00053899,120]
[341076148,1730344238758,-500.0,0.00053899,120]
[341076149,1730344238767,-505.59251769,0.00053899,120]
[341076150,1730344238776,-513.00074144,0.00053899,120]
[341076151,1730344238785,-510.22630768,0.00053899,120]
[341076152,1730344238794,-613.77165403,0.00053899,120]
[341076153,1730344238803,-500.0,0.00053899,120]
[341076154,1730344238811,-510.95983846,0.00053899,120]
[341076155,1730344238820,-523.54518025,0.00053899,120]
[341076156,1730344238829,-583.37356537,0.00053899,120]
[341076157,1730344238838,-500.0,0.00053899,120]
[341076158,1730344238847,-500.0,0.00053899,120]
[341076159,1730344238856,-527.08623935,0.00053899,120]
[341076160,1730344238865,-500.0,0.00053899,120]
[341076161,1730344238874,-527.03862359,0.00053899,120]
[341076162,1730344238884,-614.1403177,0.00053899,120]
[341076163,1730344238893,-528.26022206,0.00053899,120]
[341076164,1730344238902,-2032.50774493,0.00053899,120]
[341076165,1730344238911,-545.0928523,0.00053899,120]
[341076166,1730344238920,-558.21,0.00053899,120]
[341076167,1730344238929,-500.0,0.00053899,120]
[341076168,1730344238938,-504.63688654,0.00053899,120]
[341076169,1730344238947,-500.0,0.00053899,7]
[341076170,1730344238956,-511.71019696,0.00053899,120]
[341076171,1730344238965,-514.81174709,0.00053899,120]
[341076172,1730344238978,-503.47627682,0.00053899,120]
[341076173,1730344238987,-649.54911034,0.00053899,120]
[341076174,1730344238997,-544.08827665,0.00053899,120]
[341076175,1730344239006,-548.67453224,0.00053899,120]
[341076176,1730344239015,-539.07262131,0.00053899,120]
[341076177,1730344239024,-441.26218657,0.00053899,120]
[341076178,1730344239033,-512.95297024,0.00053899,120]
[341076179,1730344239042,-500.0,0.00053899,120]
[341076180,1730344239053,-523.19537387,0.00053899,120]
[341076181,1730344239062,-516.0,0.00053899,120]
[341076182,1730344239071,-363.96338325,0.00053899,120]
[341076183,1730344239081,-511.15645063,0.00053899,120]
[341076184,1730344239089,-500.0,0.00053899,120]
[341076185,1730344239099,-500.0,0.00053899,120]
[341076186,1730344239108,-516.95853701,0.00053899,120]
[341076187,1730344239117,-500.0,0.00053899,120]
[341076188,1730344239126,-515.72373312,0.00053899,120]
[341076189,1730344239135,-541.59631564,0.00053899,120]
[341076190,1730344239144,-312.01125099,0.00053899,120]
[341076191,1730344239153,-502.71859415,0.00053899,120]
[341076192,1730344239162,-532.1474005,0.00053899,120]
[341076193,1730344239171,-500.0,0.00053899,120]
[341076194,1730344239180,-505.21975725,0.00053899,120]
[341076195,1730344239189,-540.71105546,0.00053899,120]
[341076196,1730344239198,-529.1302758,0.00053899,120]
[341076197,1730344239207,-528.75892825,0.00053899,120]
[341076198,1730344239216,-507.79803103,0.00053899,120]
[341076199,1730344239225,-500.0,0.00053899,120]
[341076200,1730344239234,-512.56717646,0.00053899,120]
[341076201,1730344239243,-507.98280214,0.00053899,120]
[341076202,1730344239253,-500.0,0.00053899,120]
[341076203,1730344239262,-500.0,0.00053899,120]
[341076204,1730344239271,-500.0,0.00053899,21]
[341076205,1730344239280,-543.24361179,0.00053899,120]
[341076206,1730344239290,-543.91230691,0.00053899,120]
[341076207,1730344239299,-500.0,0.00053899,120]
[341076208,1730344239308,-519.96710487,0.00053899,120]
[341076209,1730344239318,-500.0,0.00053899,120]
[341076210,1730344239327,-521.31643574,0.00053899,120]
[341076211,1730344239337,-500.0,0.00053899,120]
[341076212,1730344239346,-523.72179642,0.00053899,120]
[341076213,1730344239355,-540.1627062,0.00053899,120]
[341076214,1730344239364,-521.01349086,0.00053899,120]
[341076215,1730344239373,-541.04408555,0.00053899,120]
[341076216,1730344239382,-500.0,0.00053899,120]
[341076217,1730344239391,-559.17999126,0.00053899,120]
[341076218,1730344239401,-505.8727583,0.00053899,120]
[341076219,1730344239410,-543.46392655,0.00053899,120]
[341076220,1730344239419,-557.04983205,0.00053899,120]
[341076221,1730344239428,-1003.51005855,0.00053899,120]
[341076222,1730344239437,-500.0,0.00053899,120]
[341076223,1730344239446,-150.99325976,0.00053899,120]
[341076224,1730344239455,-511.83051115,0.00053899,120]
[341076225,1730344239464,-345.56177751,0.00053899,120]
[341076226,1730344239474,-339.58802408,0.00053899,120]
[341076227,1730344239483,-516.81458161,0.00053899,120]
[341076228,1730344239493,-500.0,0.00053899,120]
[341076229,1730344239503,-500.0,0.00053899,120]
[341076230,1730344239512,-503.03090582,0.00053899,120]
[341076231,1730344239521,-509.48623466,0.00053899,120]
[341076232,1730344239531,-500.0,0.00053899,14]
[341076233,1730344239541,-500.0,0.00053899,120]
[341076234,1730344239550,-506.41080449,0.00053899,120]
[341076235,1730344239561,-500.0,0.00053899,120]
[341076236,1730344239570,-517.84327075,0.00053899,120]
[341076237,1730344239580,-508.32451803,0.00053899,120]
[341076238,1730344239590,-500.0,0.00053899,120]
[341076239,1730344239600,-510.42002979,0.00053899,120]
[341076240,1730344239610,-500.0,0.00053899,120]
[341076241,1730344239619,-500.68780345,0.00053899,120]